Cogmind - Beta 14 @@@ ROGUE MODE // 2025.04.23 @ 17:38:10 Player: jumpy Result: Destroyed by Y-54 Guardian with Gatling Laser Performance ------------- Evolutions (3) 1500 Regions Visited (5) 1000 Robots Destroyed (85) 425 Value Destroyed (3080) 3080 Prototype IDs (7) 140 Alien Tech Used (0) 0 Bonus (83) 83 TOTAL SCORE: 6228 Bonus ------- High Alert Combat Kills 83 Cogmind --------- Core Integrity 0/700 Matter 300/300 Energy 100/100 System Corruption 7% Temperature Cool (12) Movement Core (50) Location -7/Storage Parts ------- > --- POWER (1) -------- (None) > --- PROPULSION (4) --- (None) > --- UTILITY (6) ------ Targeting Computer System Shield > --- WEAPON (2) ------- Chainsword > --- INVENTORY (5) ---- Improved Deuterium Engine Micro Nuclear Core Micro Nuclear Core Advanced Beam Rifle Cooled Particle Cannon Peak State ------------ > --- POWER ------------ Micro Nuclear Core > --- PROPULSION ------- Light Treads Armored Treads Armored Treads Armored Treads > --- UTILITY ---------- Large Storage Unit Improved Sensor Array Advanced Targeting Computer Improved Light Armor Plating Improved Light Armor Plating Improved Light Armor Plating > --- WEAPON ----------- Precision Shock Rifle Ion Cannon > --- INVENTORY -------- Ion Engine Nuclear Core Wheel Wheel Heavy Assault Cannon Advanced Assault Cannon [Rating: 39] Favorites ----------- Power Nuclear Core Engine Ion Engine Power Core Nuclear Core Propulsion Armored Treads Treads Armored Treads Leg Aluminum Leg Wheel Wheel Utility Large Storage Unit Device Improved Sensor Array Storage Large Storage Unit Processor Advanced Targeting Computer Hackware System Shield Protection Improved Light Armor Plating Weapon Heavy Assault Cannon Energy Gun Precision Shock Rifle Energy Cannon Ion Cannon Ballistic Gun Light Assault Rifle Ballistic Cannon Heavy Assault Cannon Launcher Rocket Array Slashing Weapon Chainsword Build | -11 -10 -9 -8 -7 -7 ------- Run | Yrd Mat Mat Mat Fac Sto Slots Evolved 6 | . . 2 2 2 . Power . | . . . . . . Propulsion 2 | . . . 2 . . Utility 4 | . . 2 . 2 . Weapon . | . . . . . . Parts Attached 81 | 7 8 12 8 33 13 Power 9 | 1 2 1 1 4 . Engine 5 | 1 2 1 . 1 . Core 4 | . . . 1 3 . Reactor . | . . . . . . Propulsion 31 | 2 4 6 3 12 4 Treads 13 | . . 2 3 4 4 Leg 6 | 2 2 . . 2 . Wheel 12 | . 2 4 . 6 . Hover . | . . . . . . Flight . | . . . . . . Utility 17 | 2 2 1 3 8 1 Device 3 | 1 . 1 . 1 . Storage 3 | 1 2 . . . . Processor 2 | . . . 1 . 1 Hackware 2 | . . . . 2 . Protection 7 | . . . 2 5 . Artifact . | . . . . . . Weapon 24 | 2 . 4 1 9 8 Energy Gun 7 | 1 . . . 3 3 Energy Cannon 5 | . . . . 2 3 Ballistic Gun 5 | 1 . 3 . 1 . Ballistic Cannon 4 | . . 1 1 2 . Launcher 1 | . . . . . 1 Special Weapon . | . . . . . . Impact Weapon . | . . . . . . Slashing Weapon 2 | . . . . 1 1 Piercing Weapon . | . . . . . . Special Melee Weapon . | . . . . . . Unidentified Prototypes 7 | . . 1 . 2 4 Parts Lost 35 | . 2 5 2 15 11 Power 4 | . 1 1 . 1 1 Propulsion 14 | . . 1 . 7 6 Utility 9 | . 1 1 1 3 3 Weapon 8 | . . 2 1 4 1 Highest Loss Streak 7 | . 2 3 2 6 7 To Critical Strikes 1 | . . . . . 1 Average Slot Usage (%) 77 | . 88 64 77 81 66 Engine 2 | . 13 10 . 1 . Core 5 | . . . 8 5 6 Treads 17 | . . 4 33 16 13 Leg 2 | . 25 . . . . Wheel 6 | . 2 16 . 8 5 Device 3 | . 4 5 . 5 . Storage 8 | . 14 11 9 7 7 Processor 5 | . . . 6 7 5 Hackware 2 | . . . . 3 11 Protection 7 | . . . 9 10 . Energy Gun 3 | . 14 2 . 3 2 Energy Cannon 2 | . . . . 4 4 Ballistic Gun 2 | . 14 10 . . . Ballistic Cannon 4 | . . 3 9 3 . Peak Build Rating 39 | 7 7 15 31 39 32 Average Rating 23 | 5 6 10 26 31 26 On Entrance 13 | . 7 6 15 28 25 Naked Turns . | . . . . . . Heaviest Build 47 | 13 27 37 47 46 37 Greatest Support 96 | 20 20 40 80 80 96 Greatest Overweight (x) 8 | . 1 3 . 4 8 Average Overweight (x) . | . . . . . . Largest Inventory Capacity 15 | 8 15 15 15 15 15 Average Capacity 13 | 7 8 15 15 15 14 Most Carried 10 | 6 8 10 10 9 9 Average Carried 6 | 2 5 4 8 6 6 Final Capacity 15 | 8 15 15 15 15 5 Final Carried 9 | 6 4 9 5 6 5 Class Distribution -------------------- 81% | Mutant 11% | Hacker-Mutant 7% | Scavenger-Mutant Dominant Class ---------------- Mutant | -10/Materials Mutant | -9/Materials Mutant | -8/Materials Mutant | -7/Factory Mutant | -7/Storage Resources | -11 -10 -9 -8 -7 -7 ----------- Run | Yrd Mat Mat Mat Fac Sto Matter Collected 2161 | 285 70 246 697 584 279 Remotely . | . . . . . . Salvage Created 2818 | 223 194 341 781 1000 279 Parts 183 | 25 11 21 49 66 11 Haulers Intercepted . | . . . . . . Recyclers Shooed 1 | . . . . 1 . Parts Field Recycled . | . . . . . . Retrieved Matter . | . . . . . . Parts Self-Destructed . | . . . . . . Prevented . | . . . . . . Kills | -11 -10 -9 -8 -7 -7 ------- Run | Yrd Mat Mat Mat Fac Sto Combat Hostiles Destroyed 64 | . 6 9 24 20 5 Melee 1 | . . . . . 1 Guns 15 | . 6 5 . 4 . Cannons 46 | . . 4 24 14 4 Classes Destroyed 12 | 1 3 3 3 2 . Worker 5 | . 1 1 1 2 . Builder 4 | . . 1 1 2 . Tunneler 9 | 9 . . . . . Recycler 1 | . . . . 1 . Watcher 2 | . . . 1 1 . Swarmer 7 | . 3 . 3 1 . Grunt 35 | . 3 5 15 10 2 Brawler 3 | . . 1 1 . 1 Duelist 2 | . . . 1 1 . Sentry 9 | . . 3 3 2 1 Hunter 4 | . . . 1 2 1 Programmer 4 | . . . . 4 . Best Kill Streak 5 | 4 4 3 5 5 2 Combat Bots Only 5 | . 3 3 5 5 2 Max Kills in Single Turn 2 | 1 1 1 2 1 1 Gunslinging . | . . . . . . Exploded . | . . . . . . Melee 1 | . . . . . 1 Uniques/NPCs Destroyed . | . . . . . . Combat | -11 -10 -9 -8 -7 -7 -------- Run | Yrd Mat Mat Mat Fac Sto Hostile Shots Fired 685 | . 45 81 169 187 203 Missed 193 | . 16 22 52 49 54 Damage Taken 6444 | . 298 819 1494 2302 1531 Core 906 | . 34 91 75 329 377 Absorbed by Shields . | . . . . . . Core Remaining (%) 87 | 100 86 77 86 . . Volleys Fired 289 | 32 23 46 71 90 27 Largest 2 | 2 2 2 1 2 1 Hottest 115 | 60 60 63 60 115 55 Shots Fired 392 | 64 46 62 71 122 27 Gun 206 | 64 46 49 . 38 9 Cannon 186 | . . 13 71 84 18 Launcher . | . . . . . . Special . | . . . . . . Kinetic 253 | 32 23 54 71 73 . Thermal 118 | 32 23 8 . 28 27 Explosive . | . . . . . . Electromagnetic 21 | . . . . 21 . Robot Hit Streak 15 | 6 11 11 12 15 5 Robot Miss Streak 4 | 3 3 3 4 3 3 Penetration Max 1 | . . 1 1 1 . Secondary Targets 3 | . 2 1 . . . Max Gunslinging Chain 1 | . 1 1 . . . Shots Hit Robots 271 | 38 28 48 49 86 22 Core Hits 118 | 15 13 16 24 39 11 Critical Kills 1 | . . . . 1 . Critical Parts Destroyed . | . . . . . . Critical Strikes 15 | . . 1 8 6 . Destroy 1 | . . . . 1 . Blast 14 | . . 1 8 5 . Melee Attacks 10 | . . . . . 10 Impact . | . . . . . . Slashing 10 | . . . . . 10 Piercing . | . . . . . . Sneak Attacks . | . . . . . . Combat Hostiles . | . . . . . . Follow-up Attacks . | . . . . . . Damage Inflicted 7729 | 405 301 1129 2749 2544 601 Guns 1861 | 405 301 519 . 529 107 Cannons 5611 | . . 602 2732 1952 325 Explosions 10 | . . . . 10 . Melee 169 | . . . . . 169 Ramming 78 | . . 8 17 53 . Kinetic 5775 | 180 101 1066 2732 1696 . Thermal 1367 | 225 200 55 . 455 432 Explosive . | . . . . . . Electromagnetic 340 | . . . . 340 . Impact . | . . . . . . Slashing 169 | . . . . . 169 Piercing . | . . . . . . Highest Corruption 7 | . . 1 . 4 7 Average Corruption 2 | . . 1 . 2 5 Corruption Purged . | . . . . . . Corruption Blocked . | . . . . . . Effects 32 | . . 4 . 17 11 Message Errors 5 | . . 2 . 2 1 Matter Fused 7 | . . 1 . 4 2 Heat Flow Errors 5 | . . . . 4 1 Energy Discharges 1 | . . . . . 1 Parts Rejected 3 | . . . . 1 2 Parts Fused 1 | . . . . 1 . Data Loss (minor) 4 | . . 1 . 2 1 Data Loss (major) 2 | . . . . 1 1 Misfires 2 | . . . . 2 . Alerts 2 | . . . . . 2 Overload Shots . | . . . . . . Overflow Damage 357 | . . . 167 188 2 Projectiles 349 | . . . 167 180 2 Explosions 3 | . . . . 3 . Melee 5 | . . . . 5 . Knockbacks 30 | . . 2 15 13 . Impact . | . . . . . . Kinetic 28 | . . 2 14 12 . Secondary 2 | . . . 1 1 . Self-Inflicted Damage 49 | . . 4 . 45 . Shots 1 | . . . . 1 . Rammed 11 | . . 2 5 4 . Targets Rammed 11 | . . 2 5 4 . Kicked . | . . . . . . Crushed . | . . . . . . Highest Temperature 269 | 60 58 89 246 269 227 Average Temperature 55 | 24 26 24 71 63 58 Received Heat Transfer 1989 | . 105 339 621 630 294 Effects 4 | . . . 2 2 . Interference 4 | . . . 2 2 . Siege Activations . | . . . . . . Robots Corrupted 3 | . . . . 3 . Combat Hostiles 2 | . . . . 2 . Parts Fried 5 | . . . . 5 . Impact Corruptions 1 | . . . . 1 . Robots Melted . | . . . . . . Combat Hostiles . | . . . . . . Parts Melted 2 | . 1 . . . 1 Heat Transferred 2407 | 500 450 125 . 703 629 Parts Sabotaged . | . . . . . . Parts Stolen . | . . . . . . Parts Stripped . | . . . . . . Power Chain Reactions . | . . . . . . Alert | -11 -10 -9 -8 -7 -7 ------- Run | Yrd Mat Mat Mat Fac Sto Peak Influence 590 | 45 216 312 590 472 306 Initial 268 | . 29 91 77 268 183 Average 215 | 17 136 180 251 257 234 Maximum Alert Level 2 | . 1 1 2 2 1 Low Security (%) 47 | 100 70 64 46 29 39 Level 1 46 | . 29 35 36 65 60 Level 2 6 | . . . 17 5 . Level 3 . | . . . . . . Level 4 . | . . . . . . Level 5 . | . . . . . . High Security . | . . . . . . Max Security . | . . . . . . Squads Dispatched 17 | . 2 1 4 8 2 Investigation 5 | . 1 . 1 2 1 Extermination 4 | . . . . 3 1 Reinforcement 7 | . 1 1 2 3 . Assault 1 | . . . 1 . . Garrison . | . . . . . . Intercept . | . . . . . . Searches Triggered . | . . . . . . Construction Impeded . | . . . . . . Haulers Reinforced 2 | . . . . 2 . Active Scanning Responses . | . . . . . . Cargo Convoy Interrupts . | . . . . . . Stealth | -11 -10 -9 -8 -7 -7 --------- Run | Yrd Mat Mat Mat Fac Sto Distress Signals 9 | . 2 2 3 1 1 Communications Jammed . | . . . . . . Distress Signals . | . . . . . . Times Spotted 101 | . 10 15 32 35 9 Peak Tracking Total 10 | . 6 4 10 6 4 Tactical Retreats 7 | . 1 1 1 4 . Traps | -11 -10 -9 -8 -7 -7 ------- Run | Yrd Mat Mat Mat Fac Sto Traps Triggered 6 | . . . 1 4 1 Indirectly . | . . . . . . Trap Hack Attempts . | . . . . . . Triggered . | . . . . . . Disarmed 6 | . . . . 6 . Reprogrammed . | . . . . . . Reused . | . . . . . . Traps Extracted . | . . . . . . Installed . | . . . . . . Triggered . | . . . . . . Machines | -11 -10 -9 -8 -7 -7 ---------- Run | Yrd Mat Mat Mat Fac Sto Machines Disabled 8 | . . . 3 3 2 Max in Single Turn 1 | . . . 1 1 1 Garrison Access 1 | . . . 1 . . Machines Repaired . | . . . . . . Machines Dismantled . | . . . . . . Machines Sabotaged . | . . . . . . Overloaded Fab Kills . | . . . . . . Hacking | -11 -10 -9 -8 -7 -7 --------- Run | Yrd Mat Mat Mat Fac Sto Machines Accessed 13 | . 4 2 2 4 1 Terminals 9 | . 4 1 1 2 1 Fabricators 1 | . . . . 1 . Repair Stations . | . . . . . . Recycling Units . | . . . . . . Scanalyzers 3 | . . 1 1 1 . Garrison Access . | . . . . . . Total Hacks 29 | . 8 6 4 9 2 Successful 12 | . 2 2 2 6 . Failed 17 | . 6 4 2 3 2 Catastrophic 6 | . 2 2 1 . 1 Database Lockouts . | . . . . . . Manual 15 | . 8 3 2 . 2 Terminals 18 | . 8 3 2 3 2 Fabricators 3 | . . . . 3 . Repair Stations . | . . . . . . Recycling Units . | . . . . . . Scanalyzers 8 | . . 3 2 3 . Garrison Access . | . . . . . . Terminal Hacks 4 | . 2 . . 2 . Record 1 | . . . . 1 . Robot Schematic 1 | . 1 . . . . Fabricator Index 1 | . 1 . . . . Disarm Traps 1 | . . . . 1 . Fabricator Hacks 2 | . . . . 2 . Load Schematic 1 | . . . . 1 . Build 1 | . . . . 1 . Repair Station Hacks . | . . . . . . Recycling Unit Hacks . | . . . . . . Scanalyzer 6 | . . 2 2 2 . Insert Component 3 | . . 1 1 1 . Analyze 3 | . . 1 1 1 . Garrison Access Hacks . | . . . . . . Unauthorized Hacks . | . . . . . . Terminals . | . . . . . . Fabricators . | . . . . . . Repair Stations . | . . . . . . Recycling Units . | . . . . . . Scanalyzers . | . . . . . . Garrison Access . | . . . . . . Data Cores Recovered . | . . . . . . Used . | . . . . . . Hacking Detections 10 | . 3 2 1 3 1 Full Trace Events 4 | . 1 . 1 2 . Feedback Events . | . . . . . . Feedback Blocked . | . . . . . . Robot Schematics Acquired 1 | . 1 . . . . Robots Built . | . . . . . . Authchips . | . . . . . . Time . | . . . . . . Total Robot Build Rating . | . . . . . . Part Schematics Acquired 3 | . . 1 1 1 . Parts Built . | . . . . . . Authchips . | . . . . . . Time 36 | . . . . 36 . Total Part Build Rating . | . . . . . . Parts Repaired . | . . . . . . Time . | . . . . . . Parts Recycled . | . . . . . . Recycled Matter . | . . . . . . Retrieved Matter . | . . . . . . Retrieved Components . | . . . . . . Parts Scanalyzed 3 | . . 1 1 1 . Part Schematics Acquired 3 | . . 1 1 1 . Parts Damaged 1 | . . . 1 . . Bothacking | -11 -10 -9 -8 -7 -7 ------------ Run | Yrd Mat Mat Mat Fac Sto Used RIF Installer . | . . . . . . Robots Hacked . | . . . . . . Non-combat . | . . . . . . Combat . | . . . . . . Robot Hacks Applied . | . . . . . . Relay Couplers Released 2 | . . . 2 . . Machine Destruction 2 | . . . 2 . . Fabnet Peak Effective % . | . . . . . . Robots Rewired . | . . . . . . Allies Hacked . | . . . . . . Hacks Repelled . | . . . . . . Allies | -11 -10 -9 -8 -7 -7 -------- Run | Yrd Mat Mat Mat Fac Sto Total Allies . | . . . . . . Largest Group . | . . . . . . Highest-Rated Group . | . . . . . . Highest-Rated Ally . | . . . . . . Total Orders . | . . . . . . Ally Attacks . | . . . . . . Total Damage . | . . . . . . Kills . | . . . . . . Allies Corrupted . | . . . . . . Allies Melted . | . . . . . . Intel | -11 -10 -9 -8 -7 -7 ------- Run | Yrd Mat Mat Mat Fac Sto Robot Analysis Total . | . . . . . . Derelict Logs Recovered . | . . . . . . Drone Launches . | . . . . . . Drone Recoveries . | . . . . . . Exploration | -11 -10 -9 -8 -7 -7 ------------- Run | Yrd Mat Mat Mat Fac Sto Turns Passed 3918 | 336 283 463 902 1631 303 Spaces Moved 2129 | 190 172 278 399 961 129 Core 5 | 3 . . . . 2 Treads 970 | . . 42 399 466 63 Legs 342 | 187 154 . . 1 . Wheels 812 | . 18 236 . 494 64 Hover . | . . . . . . Flight . | . . . . . . Fastest Speed 50 | 50 95 95 170 85 100 Average Speed 135 | 118 117 106 170 135 142 Slowest Speed 450 | 120 190 170 170 330 450 Overloaded Moves . | . . . . . . Propulsion Burnouts . | . . . . . . Robots Hopped . | . . . . . . Cave-ins Triggered . | . . . . . . Exploration Rate (%) 27 | 8 40 29 41 26 22 Regions Visited 5 Branch Regions 1 Pre-discovered Areas . | . . . . . . Known Exits Taken . | . . . . . . Unknown Exits Taken 5 | 1 1 1 1 1 . Scrap Searched . | . . . . . . Spaces Dug . | . . . . . . Terrain Destroyed 47 | . . 5 26 13 3 Melee . | . . . . . . Projectile 47 | . . 5 26 13 3 AOE . | . . . . . . Terrain Rammed . | . . . . . . Walls Destroyed . | . . . . . . Machines Disabled . | . . . . . . Actions | -11 -10 -9 -8 -7 -7 --------- Run | Yrd Mat Mat Mat Fac Sto Total 2688 | 239 210 377 512 1147 203 Wait 103 | 5 2 23 25 30 18 Move 2124 | 189 171 277 398 960 129 Hop . | . . . . . . Pick Up 31 | 6 . 10 1 10 4 Fast Attach 35 | 7 1 2 4 16 5 Attach 23 | . 1 6 3 10 3 Detach 3 | . . 1 1 1 . Swap 23 | . 6 4 1 7 5 Drop 23 | . 6 6 3 6 2 Fire 289 | 32 23 46 71 90 27 Melee 10 | . . . . . 10 Ram 4 | . . 2 . 2 . Kick . | . . . . . . Crush 7 | . . . 5 2 . Escape Stasis 8 | . . . . 8 . Rewire 5 | . . . . 5 . Trap . | . . . . . . Miscellaneous . | . . . . . . Route ------- -11/Scrapyard -10/Materials -9/Materials -8/Materials -7/Factory -7/Storage History --------- Turn | Location | Event 6 | -11/Scrapyard | Discovered new exit (range 15) 337 | -11/Scrapyard | Entered Materials 338 | -10/Materials | Build established: Mutant 589 | -10/Materials | Discovered new exit (range 12) 620 | -10/Materials | Entered another Materials area 620 | -9/Materials | Evolved 2 slots: Utility x2 889 | -9/Materials | Lost 3 parts (1n1u1w) 1056 | -9/Materials | Discovered new exit (range 16) 1083 | -9/Materials | Entered another Materials area 1083 | -8/Materials | Evolved 2 slots: Propulsion x2 1968 | -8/Materials | Discovered new exit (range 10) 1985 | -8/Materials | Entered Factory 1985 | -7/Factory | Evolved 2 slots: Utility x2 2918 | -7/Factory | Lost 4 parts (3n1w) 3317 | -7/Factory | Lost 6 parts (3n1u2w) 3514 | -7/Factory | Discovered new exit (range 12) 3616 | -7/Factory | Entered Storage 3628 | -7/Storage | Build established: Hacker-Mutant 3668 | -7/Storage | Found Prototype Launcher 3669 | -7/Storage | Identified Rocket Array 3769 | -7/Storage | Core integrity fell below 50% 3904 | -7/Storage | Core integrity fell below 20% 3919 | -7/Storage | Destroyed by Y-54 Guardian with Gatling Laser Last Messages --------------- 03857_ U-05 Engineer builds a Wall. 03861_ R-06 Scavenger collects Assault Rifle. 03866_ ALERT: Rogue bot located, Programmers report to Storage Zone 3G. 03869_ U-05 Engineer builds a Wall. 03875_ Penetrated by Slug. 03878_ Slug penetrates Wall. 03885_ Lgt. Treads destroyed. 03887_ System corrupted: Matter fused (-5). 03888_ Critical hit (Destroy). 03888_ Med. Treads destroyed. 03891_ Penetrated by Slug. 03891_ Med. Treads destroyed. 03894_ Nuclear Core destroyed. 03894_ Lgt. Treads destroyed. 03906_ Penetrated by Slug. 03910_ Storage Shell breached. 03913_ Lrg. Storage Unit destroyed. 03913_ Hvy. Particle Gun destroyed. 03915_ Slug penetrates Wall. 03919_ P-60 Hacker resets Y-54 Guardian, system corruption cleaned. Map ----- +----------------------------------------------------+ | | | | | | | | | | | | | | | | | | | | | | | | | ????????????????????????????????? | | ????????????????????????????????? | | ????????????????????????????????? | | ????????????????????????????????? | | ??????????#?????????????????????? | | ????????? +?????????????????????? | | ????????? #?????????????????????? | | ?????"""" #?????????????????????? | | ??????*/" +?????????????????????? | | ?#????==" #?????????????????????? | | ?# """" " #?????????????????????? | | ?# #?????????????????????? | | ?# #????# ##?????????????? | | ?# p @ #?? #?????????????? | | ???####Y### #?????????????? | | ?????# + """ #?????????????? | | ?????# ## """ #?????????????? | | ?????# #???""" ??????????????? | | ?????# #????? ??????????????? | | ?????# #??????? #?????????????? | | ?????# #??????????????????????? | | ????## #??????????????????????? | | ????## #??????????????????????? | | ????## #??????????????????????? | | ?????# #####+#### ????????? | | ?????# ????????? | | ?????# ????????? | | ?????# ????????? | | ?????# ########## ????????? | | ?????# #??????????????????????? | | ?????# #??????????????????????? | | ?????# ##?????????????????????? | | ?????# ##?????????????????????? | | ?????# ##?????????????????????? | | ????## ##?????????????????????? | | ????# ##+###T####???????????? | | ????# " #???????????? | | ????# "T +???????????? | +----------------------------------------------------+ Best States ------------- Heat Dissipation 34 Energy Generation 18 Energy Capacity 250 Matter Stores 300 Matter Capacity 300 Sight Range 16 Robot Scan Range 15 Terrain Scan Density 10 Armor Coverage 450 Evasion (%) 55 Targeting Accuracy 8 Recoil Reduction 4 Defensive Hacking 20 Item Schematics ----------------- Imp. Assault Rifle | -9/Materials | Scanalyzed Arm. Treads | -8/Materials | Scanalyzed Hvy. Assault Cannon | -7/Factory | Scanalyzed Robot Schematics ------------------ G-34 Mercenary | -10/Materials | Hacked Fabricated ------------ Nothing Alien Tech Used ----------------- None Achievements -------------- None Challenges ------------ None Game ------ Seed ThunderRefineryRail Manual? 0 Play Time 00:32:12 Cumulative 43.4 hours Start 2025.04.23 @ 17:02:50 End 2025.04.23 @ 17:38:10 Sessions 1 Manual Loads 0 Difficulty Rogue Special Mode None Game No. 135 Rogue 135 Adventurer 0 Explorer 0 Win Type - Total 0 Types 0/0/0/0/0/0/0/0/0 Lore% 13 Gallery% 35 Achievement% 29 Wizard Run 0 Options --------- Layout 0 ASCII 0 Keyboard 0 Movement Numpad Keybinds 0 Fullscreen 2 Font 18/Terminus Map View 76x50 Zoom Use 0% Tactical HUD 1 Map Filters NONE Filters NONE Steam 1 RUN: 32fd2d57-19a5-4334-b766-ea90efe27b7b